Cogmind - Beta 13 *** ADVENTURER MODE // 2024.06.26 @ 16:41:10 // Winter2019/RPGLIKE Player: Kurtz Result: Self-destructed Performance ------------- Evolutions (5) 2500 Regions Visited (8) 1600 Robots Destroyed (70) 350 Value Destroyed (2094) 2094 Prototype IDs (8) 160 Alien Tech Used (0) 0 Bonus (210) 210 TOTAL SCORE: 6914 Bonus ------- High Alert Combat Kills 15 Follower Combat Kills 210 Friendly Fire -15 Cogmind --------- Core Integrity 766/850 Matter 0/300 Energy 4/100 System Corruption 0% Temperature Cool (0) Movement Rolling (100) Location -5/Factory Parts ------- > --- POWER (2) -------- Fusion Compressor > --- PROPULSION (4) --- Armored Huge Wheel Armored Huge Wheel > --- UTILITY (9) ------ Sensor Array Improved Signal Interpreter Improved Terrain Scanner Advanced Terrain Scan Processor Seismic Detector Transmission Jammer Advanced ECM Suite Improved Heavy Armor Plating > --- WEAPON (3) ------- Assault Rifle Precision Assault Rifle Light Cannon > --- INVENTORY (4) ---- Light Ion Engine Recoil Stabilizer Layered Light Armor Plating Axe Peak State ------------ > --- POWER ------------ Fusion Compressor > --- PROPULSION ------- Armored Huge Wheel Armored Huge Wheel > --- UTILITY ---------- Sensor Array Improved Signal Interpreter Improved Terrain Scanner Advanced Terrain Scan Processor Seismic Detector Transmission Jammer Advanced ECM Suite Improved Heavy Armor Plating > --- WEAPON ----------- Assault Rifle Precision Assault Rifle Light Cannon > --- INVENTORY -------- Recoil Stabilizer Layered Light Armor Plating Axe [Rating: 59] Favorites ----------- Power Ion Engine Engine Ion Engine Power Core Fusion Compressor Propulsion Armored Huge Wheel Wheel Armored Huge Wheel Utility Sensor Array Device Sensor Array Processor Improved Signal Interpreter Protection Improved Heavy Armor Plating Weapon Assault Rifle Energy Gun EM Pulse Gun Ballistic Gun Assault Rifle Ballistic Cannon Light Cannon Build | -11 -10 -10 -10 -9 -8 -7 -6 -5 ------- Run | Yrd Mat Min Exi Min Mat Fac Fac Fac Slots Evolved 14 | 3 . 2 . . 4 1 2 2 Power 1 | . . . . . . . . 1 Propulsion 3 | 1 . . . . 2 . . . Utility 8 | 1 . 1 . . 2 1 2 1 Weapon 2 | 1 . 1 . . . . . . Parts Attached 33 | 6 5 2 . . 12 3 4 1 Power 3 | 1 . . . . 1 . 1 . Engine 2 | 1 . . . . 1 . . . Core 1 | . . . . . . . 1 . Reactor . | . . . . . . . . . Propulsion 9 | 2 . . . . 7 . . . Treads . | . . . . . . . . . Leg . | . . . . . . . . . Wheel 9 | 2 . . . . 7 . . . Hover . | . . . . . . . . . Flight . | . . . . . . . . . Utility 14 | . 3 1 . . 4 2 3 1 Device 8 | . 2 1 . . 2 1 1 1 Storage . | . . . . . . . . . Processor 4 | . 1 . . . 2 1 . . Hackware . | . . . . . . . . . Protection 2 | . . . . . . . 2 . Artifact . | . . . . . . . . . Weapon 7 | 3 2 1 . . . 1 . . Energy Gun 1 | 1 . . . . . . . . Energy Cannon . | . . . . . . . . . Ballistic Gun 5 | 2 2 . . . . 1 . . Ballistic Cannon 1 | . . 1 . . . . . . Launcher . | . . . . . . . . . Special Weapon . | . . . . . . . . . Impact Weapon . | . . . . . . . . . Slashing Weapon . | . . . . . . . . . Piercing Weapon . | . . . . . . . . . Special Melee Weapon . | . . . . . . . . . Unidentified Prototypes . | . . . . . . . . . Parts Lost . | . . . . . . . . . Power . | . . . . . . . . . Propulsion . | . . . . . . . . . Utility . | . . . . . . . . . Weapon . | . . . . . . . . . Highest Loss Streak . | . . . . . . . . . To Critical Strikes . | . . . . . . . . . Average Slot Usage (%) 91 | . 93 100 100 100 96 84 83 77 Engine 8 | . 14 11 11 11 8 7 2 . Wheel 20 | . 28 24 22 22 23 14 12 11 Device 22 | . 9 13 22 22 25 27 27 26 Processor 12 | . 12 11 11 11 13 14 12 11 Ballistic Gun 18 | . 28 24 22 22 16 14 12 11 Ballistic Cannon 7 | . . 11 11 11 8 7 6 5 Naked Turns . | . . . . . . . . . Heaviest Build 36 | 8 10 14 14 14 17 20 33 36 Greatest Support 56 | 26 26 26 26 26 56 56 56 56 Greatest Overweight (x) 2 | 2 . . . . . . . . Average Overweight (x) . | . . . . . . . . . Largest Inventory Capacity 4 | 4 4 4 4 4 4 4 4 4 Average Capacity 4 | 4 4 4 4 4 4 4 4 4 Most Carried 4 | 1 4 4 3 4 4 4 4 4 Average Carried 3 | . 3 3 3 3 3 3 3 3 Final Capacity 4 | 4 4 4 4 4 4 4 4 4 Final Carried 4 | 1 3 3 3 4 4 4 4 4 Class Distribution -------------------- 63% | Hacker-Skirmisher 21% | Skirmisher 15% | Mutant Dominant Class ---------------- Mutant | -10/Materials Skirmisher | -10/Mines Skirmisher | -10/Exiles Skirmisher | -9/Mines Hacker-Skirmisher | -8/Materials Hacker-Skirmisher | -7/Factory Hacker-Skirmisher | -6/Factory Hacker-Skirmisher | -5/Factory Resources | -11 -10 -10 -10 -9 -8 -7 -6 -5 ----------- Run | Yrd Mat Min Exi Min Mat Fac Fac Fac Matter Collected 1939 | 163 331 150 . . 800 150 305 40 Remotely . | . . . . . . . . . Salvage Created 2093 | . 515 24 . . 981 386 149 38 Parts 150 | . 42 14 . . 73 9 6 6 Haulers Intercepted . | . . . . . . . . . Recyclers Shooed . | . . . . . . . . . Parts Field Recycled . | . . . . . . . . . Retrieved Matter . | . . . . . . . . . Parts Self-Destructed . | . . . . . . . . . Prevented . | . . . . . . . . . Kills | -11 -10 -10 -10 -9 -8 -7 -6 -5 ------- Run | Yrd Mat Min Exi Min Mat Fac Fac Fac Combat Hostiles Destroyed 57 | . 11 9 . . 24 8 5 . Guns 47 | . 11 7 . . 20 5 4 . Cannons 10 | . . 2 . . 4 3 1 . Classes Destroyed 11 | . 4 . . . 5 1 . 1 Worker 2 | . . . . . 2 . . . Builder 1 | . . . . . . . . 1 Tunneler 2 | . . . . . 1 . . 1 Recycler 1 | . 1 . . . . . . . Carrier 1 | . . . . . 1 . . . Watcher 6 | . 3 . . . 3 . . . Swarmer 23 | . 3 8 . . 4 4 4 . Grunt 25 | . 8 1 . . 13 3 . . Duelist 1 | . . . . . 1 . . . Sentry 7 | . . . . . 6 . 1 . Programmer 1 | . . . . . . 1 . . Best Kill Streak 7 | . 5 6 . . 7 5 4 2 Combat Bots Only 6 | . 4 6 . . 4 5 4 . Max Kills in Single Turn 2 | . 1 2 . . 2 1 2 1 Gunslinging . | . . . . . . . . . Exploded . | . . . . . . . . . Melee . | . . . . . . . . . Uniques/NPCs Destroyed . | . . . . . . . . . Combat | -11 -10 -10 -10 -9 -8 -7 -6 -5 -------- Run | Yrd Mat Min Exi Min Mat Fac Fac Fac Hostile Shots Fired 261 | . 44 16 . . 108 51 42 . Missed 84 | . 11 3 . . 38 19 13 . Damage Taken 1716 | . 272 75 . . 797 356 216 . Core 1352 | . 227 62 . . 634 288 141 . Absorbed by Shields . | . . . . . . . . . Redirected to Core 1052 | . 149 40 . . 523 217 123 . Ignored by Resistances 652 | . 89 31 . . 308 133 91 . Core Remaining (%) 95 | 100 . . . 100 88 100 88 . Volleys Fired 153 | . 42 13 . . 69 17 9 3 Largest 3 | . 2 3 . . 3 3 3 3 Hottest 83 | . 40 75 . . 75 83 83 83 Shots Fired 417 | . 84 39 . . 207 51 27 9 Gun 306 | . 84 26 . . 138 34 18 6 Cannon 111 | . . 13 . . 69 17 9 3 Launcher . | . . . . . . . . . Special . | . . . . . . . . . Kinetic 417 | . 84 39 . . 207 51 27 9 Thermal . | . . . . . . . . . Explosive . | . . . . . . . . . Electromagnetic . | . . . . . . . . . Robot Hit Streak 33 | . 10 8 . . 31 16 32 33 Robot Miss Streak 3 | . 3 2 . . 1 1 . 1 Penetration Max . | . . . . . . . . . Secondary Targets 1 | . 1 . . . . . . . Max Gunslinging Chain 1 | . 1 . . . . . . . Shots Hit Robots 293 | . 55 22 . . 147 41 23 5 Core Hits 131 | . 26 11 . . 65 17 9 3 Critical Kills 1 | . . . . . 1 . . . Critical Parts Destroyed . | . . . . . . . . . Critical Strikes 5 | . . . . . 5 . . . Destroy 1 | . . . . . 1 . . . Blast 4 | . . . . . 4 . . . Melee Attacks . | . . . . . . . . . Impact . | . . . . . . . . . Slashing . | . . . . . . . . . Piercing . | . . . . . . . . . Sneak Attacks . | . . . . . . . . . Combat Hostiles . | . . . . . . . . . Follow-up Attacks . | . . . . . . . . . Damage Inflicted 4309 | . 602 372 . . 2236 616 401 82 Guns 2974 | . 602 234 . . 1382 413 281 62 Cannons 1246 | . . 138 . . 767 201 120 20 Explosions 87 | . . . . . 87 . . . Melee . | . . . . . . . . . Ramming 2 | . . . . . . 2 . . Kinetic 4220 | . 602 372 . . 2149 614 401 82 Thermal . | . . . . . . . . . Explosive 87 | . . . . . 87 . . . Electromagnetic . | . . . . . . . . . Impact . | . . . . . . . . . Slashing . | . . . . . . . . . Piercing . | . . . . . . . . . Highest Corruption . | . . . . . . . . . Average Corruption . | . . . . . . . . . Corruption Purged . | . . . . . . . . . Corruption Blocked . | . . . . . . . . . Overload Shots . | . . . . . . . . . Overflow Damage 2 | . . . . . 2 . . . Projectiles 2 | . . . . . 2 . . . Explosions . | . . . . . . . . . Melee . | . . . . . . . . . Knockbacks 21 | . . 3 . . 12 3 3 . Impact . | . . . . . . . . . Kinetic 21 | . . 3 . . 12 3 3 . Secondary . | . . . . . . . . . Self-Inflicted Damage 139 | . . . . . 138 1 . . Shots 2 | . . . . . 2 . . . Rammed 1 | . . . . . . 1 . . Targets Rammed 1 | . . . . . . 1 . . Kicked . | . . . . . . . . . Crushed . | . . . . . . . . . Highest Temperature 58 | . 22 58 . . 2 . . . Average Temperature 16 | . 9 19 . . 2 . . . Received Heat Transfer 660 | . 174 24 . . 369 63 30 . Siege Activations . | . . . . . . . . . Robots Corrupted . | . . . . . . . . . Combat Hostiles . | . . . . . . . . . Parts Fried . | . . . . . . . . . Impact Corruptions . | . . . . . . . . . Robots Melted . | . . . . . . . . . Combat Hostiles . | . . . . . . . . . Parts Melted . | . . . . . . . . . Heat Transferred . | . . . . . . . . . Parts Sabotaged . | . . . . . . . . . Parts Stolen . | . . . . . . . . . Parts Stripped . | . . . . . . . . . Power Chain Reactions . | . . . . . . . . . Alert | -11 -10 -10 -10 -9 -8 -7 -6 -5 ------- Run | Yrd Mat Min Exi Min Mat Fac Fac Fac Peak Influence 471 | . 264 180 . . 471 142 144 70 Initial 117 | . . 72 . . . 117 5 60 Average 131 | . 122 116 . . 244 62 95 67 Maximum Alert Level 2 | . 1 . . . 2 . . . Low Security (%) 79 | 100 69 100 . 100 43 100 100 100 Level 1 16 | . 30 . . . 39 . . . Level 2 4 | . . . . . 16 . . . Level 3 . | . . . . . . . . . Level 4 . | . . . . . . . . . Level 5 . | . . . . . . . . . High Security . | . . . . . . . . . Max Security . | . . . . . . . . . Squads Dispatched 7 | . 4 . . . . 2 1 . Investigation 4 | . 4 . . . . . . . Extermination 2 | . . . . . . 2 . . Reinforcement 1 | . . . . . . . 1 . Assault . | . . . . . . . . . Garrison . | . . . . . . . . . Intercept . | . . . . . . . . . Searches Triggered . | . . . . . . . . . Construction Impeded . | . . . . . . . . . Haulers Reinforced . | . . . . . . . . . Active Scanning Responses . | . . . . . . . . . Cargo Convoy Interrupts . | . . . . . . . . . Stealth | -11 -10 -10 -10 -9 -8 -7 -6 -5 --------- Run | Yrd Mat Min Exi Min Mat Fac Fac Fac Distress Signals 8 | . 3 . . . 3 2 . . Communications Jammed . | . . . . . . . . . Distress Signals . | . . . . . . . . . Times Spotted 86 | . 17 13 . 2 32 16 6 . Peak Tracking Total 7 | . 5 3 . 2 7 5 4 . Tactical Retreats 9 | . 4 1 . . 4 . . . Traps | -11 -10 -10 -10 -9 -8 -7 -6 -5 ------- Run | Yrd Mat Min Exi Min Mat Fac Fac Fac Traps Triggered 5 | . 4 . . . . 1 . . Indirectly . | . . . . . . . . . Trap Hack Attempts . | . . . . . . . . . Triggered . | . . . . . . . . . Disarmed 3 | . . . . . 3 . . . Reprogrammed . | . . . . . . . . . Reused . | . . . . . . . . . Traps Extracted . | . . . . . . . . . Installed . | . . . . . . . . . Triggered . | . . . . . . . . . Machines | -11 -10 -10 -10 -9 -8 -7 -6 -5 ---------- Run | Yrd Mat Min Exi Min Mat Fac Fac Fac Machines Disabled 3 | . . 1 . . 2 . . . Max in Single Turn 1 | . . 1 . . 1 . . . Garrison Access 2 | . . . . . 1 1 . . Machines Repaired . | . . . . . . . . . Machines Dismantled . | . . . . . . . . . Machines Sabotaged . | . . . . . . . . . Overloaded Fab Kills . | . . . . . . . . . Hacking | -11 -10 -10 -10 -9 -8 -7 -6 -5 --------- Run | Yrd Mat Min Exi Min Mat Fac Fac Fac Machines Accessed 26 | . 1 1 3 1 9 9 2 . Terminals 20 | . 1 1 . . 8 8 2 . Fabricators . | . . . . . . . . . Repair Stations . | . . . . . . . . . Recycling Units . | . . . . . . . . . Scanalyzers . | . . . . . . . . . Garrison Access 2 | . . . . . 1 1 . . Total Hacks 54 | . 1 1 26 1 12 11 2 . Successful 51 | . 1 1 26 1 10 10 2 . Failed 3 | . . . . . 2 1 . . Catastrophic . | . . . . . . . . . Database Lockouts . | . . . . . . . . . Manual . | . . . . . . . . . Terminals 25 | . 1 1 . . 11 10 2 . Fabricators . | . . . . . . . . . Repair Stations . | . . . . . . . . . Recycling Units . | . . . . . . . . . Scanalyzers . | . . . . . . . . . Garrison Access 2 | . . . . . 1 1 . . Terminal Hacks 49 | . 1 1 26 1 9 9 2 . Record 27 | . . 1 26 . . . . . Robot Analysis 1 | . . . . . 1 . . . Prototype ID Bank 5 | . . . . . 5 . . . Open Door 1 | . . . . 1 . . . . Open DSF 4 | . . . . . . 2 2 . Terminal Index 1 | . . . . . 1 . . . Alert Level 2 | . 1 . . . . 1 . . Unreport Threat 2 | . . . . . . 2 . . Locate Traps 4 | . . . . . 1 3 . . Disarm Traps 1 | . . . . . 1 . . . Dispatch Records 1 | . . . . . . 1 . . Fabricator Hacks . | . . . . . . . . . Repair Station Hacks . | . . . . . . . . . Recycling Unit Hacks . | . . . . . . . . . Scanalyzer . | . . . . . . . . . Garrison Access Hacks 2 | . . . . . 1 1 . . Seal Access 2 | . . . . . 1 1 . . Unauthorized Hacks . | . . . . . . . . . Terminals . | . . . . . . . . . Fabricators . | . . . . . . . . . Repair Stations . | . . . . . . . . . Recycling Units . | . . . . . . . . . Scanalyzers . | . . . . . . . . . Garrison Access . | . . . . . . . . . Data Cores Recovered . | . . . . . . . . . Used . | . . . . . . . . . Hacking Detections 6 | . 1 1 . . 1 3 . . Full Trace Events . | . . . . . . . . . Feedback Events . | . . . . . . . . . Feedback Blocked . | . . . . . . . . . Robot Schematics Acquired . | . . . . . . . . . Robots Built . | . . . . . . . . . Authchips . | . . . . . . . . . Time . | . . . . . . . . . Total Robot Build Rating . | . . . . . . . . . Part Schematics Acquired . | . . . . . . . . . Parts Built . | . . . . . . . . . Authchips . | . . . . . . . . . Time . | . . . . . . . . . Total Part Build Rating . | . . . . . . . . . Parts Repaired . | . . . . . . . . . Time . | . . . . . . . . . Parts Recycled . | . . . . . . . . . Recycled Matter . | . . . . . . . . . Retrieved Matter . | . . . . . . . . . Retrieved Components . | . . . . . . . . . Parts Scanalyzed . | . . . . . . . . . Part Schematics Acquired . | . . . . . . . . . Parts Damaged . | . . . . . . . . . Bothacking | -11 -10 -10 -10 -9 -8 -7 -6 -5 ------------ Run | Yrd Mat Min Exi Min Mat Fac Fac Fac Used RIF Installer . | . . . . . . . . . Robots Hacked . | . . . . . . . . . Non-combat . | . . . . . . . . . Combat . | . . . . . . . . . Robot Hacks Applied . | . . . . . . . . . Relay Couplers Released . | . . . . . . . . . Fabnet Peak Effective % . | . . . . . . . . . Robots Rewired . | . . . . . . . . . Allies Hacked . | . . . . . . . . . Hacks Repelled . | . . . . . . . . . Allies | -11 -10 -10 -10 -9 -8 -7 -6 -5 -------- Run | Yrd Mat Min Exi Min Mat Fac Fac Fac Total Allies 5 | . . 2 . . . 3 . . Largest Group 3 | . . 2 1 . . 3 . . Highest-Rated Group 93 | . . 51 20 . . 93 . . Highest-Rated Ally 31 | . . 31 20 . . 31 . . Total Orders . | . . . . . . . . . Ally Attacks 36 | . . 9 . . . 27 . . Total Damage 594 | . . 147 . . . 447 . . Kills 8 | . . 3 . . . 5 . . Allies Corrupted . | . . . . . . . . . Allies Melted . | . . . . . . . . . Intel | -11 -10 -10 -10 -9 -8 -7 -6 -5 ------- Run | Yrd Mat Min Exi Min Mat Fac Fac Fac Robot Analysis Total 1 | . . . . . 1 . . . Derelict Logs Recovered 2 | . . 1 . 1 . . . . Drone Launches . | . . . . . . . . . Drone Recoveries . | . . . . . . . . . Exploration | -11 -10 -10 -10 -9 -8 -7 -6 -5 ------------- Run | Yrd Mat Min Exi Min Mat Fac Fac Fac Turns Passed 4924 | 35 715 584 360 74 1290 1267 392 207 Spaces Moved 4063 | 33 562 522 400 77 904 1078 308 179 Core 16 | 16 . . . . . . . . Treads . | . . . . . . . . . Legs . | . . . . . . . . . Wheels 4047 | 17 562 522 400 77 904 1078 308 179 Hover . | . . . . . . . . . Flight . | . . . . . . . . . Fastest Speed 50 | 50 90 90 90 90 83 100 100 100 Average Speed 94 | 76 90 90 90 90 91 100 100 100 Slowest Speed 150 | 150 90 90 90 90 100 100 100 100 Overloaded Moves . | . . . . . . . . . Propulsion Burnouts . | . . . . . . . . . Robots Hopped . | . . . . . . . . . Cave-ins Triggered . | . . . . . . . . . Exploration Rate (%) 44 | 3 78 82 90 21 77 31 9 5 Regions Visited 8 Branch Regions 3 Pre-discovered Areas 1 | . . 1 . . . . . . Known Exits Taken 7 | . 1 1 1 1 1 1 1 . Unknown Exits Taken 1 | 1 . . . . . . . . Scrap Searched 3 | . . 2 . 1 . . . . Spaces Dug . | . . . . . . . . . Terrain Destroyed 36 | . . . . . 36 . . . Melee . | . . . . . . . . . Projectile . | . . . . . . . . . AOE 36 | . . . . . 36 . . . Terrain Rammed . | . . . . . . . . . Walls Destroyed . | . . . . . . . . . Machines Disabled . | . . . . . . . . . Actions | -11 -10 -10 -10 -9 -8 -7 -6 -5 --------- Run | Yrd Mat Min Exi Min Mat Fac Fac Fac Total 4835 | 39 693 606 399 81 1215 1230 372 200 Wait 479 | . 67 62 . 4 180 108 42 16 Move 4055 | 32 561 521 399 76 903 1077 307 179 Hop . | . . . . . . . . . Pick Up 24 | 1 4 2 . 1 8 4 3 1 Fast Attach 11 | 5 2 . . . 3 . 1 . Attach 10 | . 1 2 . . 3 1 2 1 Detach 1 | . . . . . . . 1 . Swap 12 | 1 2 . . . 6 2 1 . Drop 24 | . 3 . . . 14 4 3 . Fire 153 | . 42 13 . . 69 17 9 3 Melee . | . . . . . . . . . Ram 1 | . . . . . . 1 . . Kick . | . . . . . . . . . Crush . | . . . . . . . . . Escape Stasis . | . . . . . . . . . Rewire 1 | . . 1 . . . . . . Trap . | . . . . . . . . . Miscellaneous 64 | . 11 5 . . 29 16 3 . Route ------- -11/Scrapyard -10/Materials (discovered 3 exits: *Mat / *Min x2) -10/Mines (discovered 3 exits: *Mat x2 / *Exi) -10/Exiles (discovered 2 exits: *Min x2) -9/Mines -8/Materials (discovered 3 exits: *Fac x3) -7/Factory (discovered 2 exits: *Fac / [Low]) -6/Factory -5/Factory History --------- Turn | Location | Event 1 | -11/Scrapyard | Upgraded with Propulsion slot (x1) 1 | -11/Scrapyard | Upgraded with Utility slot (x1) 1 | -11/Scrapyard | Upgraded with Weapon slot (x1) 9 | -11/Scrapyard | Discovered new exit (range 16) 36 | -11/Scrapyard | Entered Materials 133 | -10/Materials | Discovered new exit (range 12) 304 | -10/Materials | Build established: Mutant 587 | -10/Materials | Discovered new exit (range 16) 661 | -10/Materials | Identified exit to Materials 730 | -10/Materials | Discovered new exit (range 10) 738 | -10/Materials | Identified exit to Mines 751 | -10/Materials | Entered Mines 753 | -10/Mines | Reached level 2 755 | -10/Mines | Upgraded with Weapon slot (x1) 1034 | -10/Mines | Learned location of Storage (-9) 1061 | -10/Mines | Build established: Skirmisher 1086 | -10/Mines | Discovered exit to Materials (range 9) 1196 | -10/Mines | Discovered exit to Materials (range 6) 1250 | -10/Mines | Reached level 3 1271 | -10/Mines | Upgraded with Utility slot (x1) 1317 | -10/Mines | Deemed a non-threat by the Exiles lab entrance 1318 | -10/Mines | Discovered new exit (range 5) 1322 | -10/Mines | Identified exit to Exiles 1335 | -10/Mines | Entered Exiles 1335 | -10/Exiles | Found Exiles lab destroyed 1335 | -10/Exiles | Accompanied by 1 ally 1347 | -10/Exiles | Discovered new exit (range 15) 1363 | -10/Exiles | Identified exit to Mines 1687 | -10/Exiles | Discovered exit to Mines (range 10) 1695 | -10/Exiles | Entered Mines 1697 | -9/Mines | Met a Derelict bent on vengeance 1700 | -9/Mines | Learned Materials trap positions 1706 | -9/Mines | Found the Drone Emporium 1711 | -9/Mines | Found Prototype Device 1723 | -9/Mines | Assembled infested the area 1755 | -9/Mines | Discovered new exit (range 12) 1765 | -9/Mines | Identified exit to Materials 1769 | -9/Mines | Entered Materials 1770 | -8/Materials | Loaded intel: 14 trap records 1771 | -8/Materials | Reached level 4 1771 | -8/Materials | Reached level 5 1771 | -8/Materials | Reached level 6 1795 | -8/Materials | Upgraded with Propulsion slot (x1) 1795 | -8/Materials | Upgraded with Utility slot (x1) 1973 | -8/Materials | Reached level 7 2073 | -8/Materials | Discovered new exit (range 16) 2102 | -8/Materials | Build established: Hacker-Skirmisher 2151 | -8/Materials | Identified exit to Factory 2243 | -8/Materials | Upgraded with Utility slot (x1) 2458 | -8/Materials | Reached level 8 2765 | -8/Materials | Upgraded with Propulsion slot (x1) 2842 | -8/Materials | Discovered exit to Factory (range 14) 3045 | -8/Materials | Discovered exit to Factory (range 10) 3059 | -8/Materials | Entered Factory 3061 | -7/Factory | Reached level 9 3061 | -7/Factory | Reached level 10 3088 | -7/Factory | Upgraded with Utility slot (x1) 3281 | -7/Factory | Identified exit to DSF 3393 | -7/Factory | Discovered new exit (range 16) 3895 | -7/Factory | Reached level 11 4035 | -7/Factory | Allied Derelicts emerged from ambush trap array 4288 | -7/Factory | Discovered new exit (range 16) 4325 | -7/Factory | Identified exit to Factory 4326 | -7/Factory | Entered another Factory area 4328 | -6/Factory | Reached level 12 4328 | -6/Factory | Reached level 13 4340 | -6/Factory | Upgraded with Utility slot (x2) 4656 | -6/Factory | Discovered new exit (range 13) 4693 | -6/Factory | Identified exit to Factory 4718 | -6/Factory | Entered another Factory area 4720 | -5/Factory | Reached level 14 4720 | -5/Factory | Reached level 15 4720 | -5/Factory | Reached level 16 4720 | -5/Factory | Upgraded with Power slot (x1) 4720 | -5/Factory | Upgraded with Utility slot (x1) 4925 | -5/Factory | Self-destructed Last Messages --------------- GOAL=ESCAPE 04719_ T-07 Excavator is excavating. 04720_ Reached level 14. 04720_ Reached level 15. 04720_ Reached level 16. 04720_ Upgraded: Power Slot (+1) 04720_ Upgraded: Utility Slot (+1) 04720_ Upgraded: Core Integrity (+100) 04720_ Upgraded: Sensor Range (+2) 04720_ Upgraded: Ranged Accuracy (+5) 04720_ Upgraded: TH Resistance % (+5) 04753_ Acquired 2 matter. 04761_ U-05 Engineer destroyed. 04762_ T-07 Excavator is excavating. 04764_ Acquired 23 matter. 04765_ T-07 Excavator destroyed. 04768_ K-01 Serf collects debris. 04769_ Acquired 15 matter. 04771_ Acquired Lgt. Ion Engine. 04773_ K-01 Serf collects debris. Map ----- +----------------------------------------------------+ | # ?# ? ???????????????????????????? | | # """"?######?###??????????????????????????? | | # """" ###########?????????????????????????? | | # """" ####??##????????????????????????????? | | + """" ####?##?###?#???????????????????????? | | # """" ###########?##??????????????????????? | | # ?"""" ##########??###?????????????????????? | | # """" #?#############?????????????????????? | | # ?#######?###??##????????????????????? | | ########################?????????????????????? | | ###########?###############??????????????????? | | ##### #######?###############????????????????? | | ###### ! ##############?##?????????????????? | | ######!! ############?########?????????????? | | ######### ###################?###????????????? | | ##################?????????????? | | ##################?#???????????? | | ##################?#???????????? | | # #########?????????? | | # ##??#??#??????????? | | ######### # ! #####????#????????? | | ######### # t ##???#?#??????????? | | #############k # ########??????????? | | ############# # ! ####?#?#?#????????? | | # + ###??#####????????? | | """ """ """ # # @ ########?###??????? | | """ """ """ # + #########?????????? | | """ """ """ # # = ####?##??#????????? | | # # ####??####????????? | | """ """ """ # # ####?###?#????????? | | """ """ """ + ##############?#?####??????????? | | """ """ """ # # #?###??##?????????? | | # # ? ?? ?########?????????? | | ] # # """"""" #??#?##???????????? | | = # # """"""" #?####?#??????????? | | ############# # """?""" ?######???????????? | | ###### # """"""" ???######???????????? | | +? ? ###?#?????????????? | | # """""""? ? ###???????????????? | | # """"""" ???????????????????? | | ###### # """?"""? ??????????????????? | | ########+######+### """"""???????????????????????? | | ? ? # ???????????????????????????? | | ##?#???????????????????????????? | | ? ??##?????????????????????????????? | | ??#??????????????????????????????? | | ? ??? ? ? ????????????????????????????????? | | ? ??????????????????????????????????? | | ? ? ????????????????????????????????????????? | | ??? ???????????????????????????????????????????? | +----------------------------------------------------+ Best States ------------- Heat Dissipation 67 Energy Generation 30 Energy Capacity 265 Matter Stores 300 Matter Capacity 300 Sight Range 17 Robot Scan Range 22 Terrain Scan Range 16 Terrain Scan Density 710 Jamming Range 12 Armor Coverage 600 Resistance: KI 25 Resistance: TH 30 Resistance: EX 25 Resistance: EM 20 Resistance: I 20 Resistance: S 20 Resistance: P 20 Evasion (%) 43 Recoil Reduction 4 Offensive Hacking 25 Item Schematics ----------------- None Robot Schematics ------------------ None Fabricated ------------ Nothing Alien Tech Used ----------------- None Achievements -------------- None Challenges ------------ None RPGLIKE | -11 -10 -10 -10 -9 -8 -7 -6 -5 --------- Run | Yrd Mat Min Exi Min Mat Fac Fac Fac Levels Raised 15 | . . 2 . . 5 3 2 3 XP Earned 26513 | 4000 1405 2006 200 649 7598 4230 3133 3292 XP Spent 26495 | 4000 . 3000 . . 7000 3485 4515 4495 Upgrades 53 | 7 . 12 . . 17 6 4 7 Power Slot 1 | . . . . . . . . 1 Propulsion Slot 3 | 1 . . . . 2 . . . Utility Slot 8 | 1 . 1 . . 2 1 2 1 Weapon Slot 2 | 1 . 1 . . . . . . Core Integrity 5 | . . 1 . . . 1 1 2 Heat Dissipation 7 | . . . . . 5 1 1 . Energy Generation 1 | . . . . . . 1 . . Inventory Capacity 4 | 4 . . . . . . . . Sight Range 1 | . . 1 . . . . . . Sensor Range 4 | . . 3 . . . . . 1 Terrain Scan Density 5 | . . . . . 5 . . . Ranged Accuracy 5 | . . 1 . . 1 2 . 1 Hack Attack % 3 | . . 1 . . 2 . . . KI Resistance % 1 | . . 1 . . . . . . TH Resistance % 2 | . . 1 . . . . . 1 EX Resistance % 1 | . . 1 . . . . . . Protomatter Created 626 | . 128 120 . . 359 . 19 . Integrity Restored 1347 | . 227 62 . . 641 360 57 . Core 1268 | . 227 62 . . 562 360 57 . Parts 79 | . . . . . 79 . . . Protomatter Decayed 354 | . 52 118 . . 143 41 . . Game ------ Seed ThermicShadeSystem Manual? 0 Play Time 01:19:07 Cumulative 463.8 hours Start 2024.06.26 @ 14:19:43 End 2024.06.26 @ 16:41:10 Sessions 5 Manual Loads 0 Difficulty Adventurer Special Mode Winter2019/RPGLIKE Game No. 49 Rogue 1 Adventurer 46 Explorer 2 Win Type - Total 3 Types 2/0/0/1/0/0/0/0/0 Lore% 53 Gallery% 44 Achievement% 58 Wizard Run 0 Options --------- Layout 1 ASCII 0 Keyboard 0 Movement Numpad Keybinds 0 Fullscreen 1 Font 32/SmallcapsGlow Map View 77x35 Zoom Use 0% Tactical HUD 1 Map Filters NONE Filters NONE Steam 1 RUN: 5f470c64-a49d-459c-bab2-9a85d45dba22